[Event "53rd Mongolian Women-ch 2023"]
[Site "Khovd"]
[Date "2023.05.24"]
[Round "5.6"]
[White "Altantuya, Boldbaatar"]
[Black "Enkhrii Enkh-Amgalan"]
[Result "1/2-1/2"]
[ECO "D80"]
[WhiteElo "2191"]
[BlackElo "1448"]
[Annotator "TA"]
[PlyCount "172"]
[EventDate "2023.05.22"]
[EventType "tourn"]
[EventCountry "MGL"]
[SourceTitle "playchess.com"]
[Source "ChessBase"]
[SourceQuality "1"]
[TimeControl "40/5400+30:1800+30"]

{[%evp 15,172,27,29,29,36,33,47,33,28,28,32,0,0,0,0,0,0,-7,0,0,-13,-21,50,43,43,43,43,43,54,36,84,0,0,0,0,0,0,0,0,0,0,0,0,0,29,17,18,18,19,20,14,0,0,0,0,0,0,-6,0,0,0,0,0,0,0,0,0,0,0,0,0,-12,-12,-12,-12,-12,-11,-15,-6,-8,0,0,0,-2,0,0,0,0,0,0,0,0,0,0,0,0,0,0,0,0,0,0,0,0,0,0,0,0,0,0,0,0,0,0,0,0,0,0,0,0,0,0,0,0,0,0,0,0,0,0,0,0,0,0,0,0,0,0,0,0,0,0,0,0,0,0,0,0,8,8,8,8,59,59,59,59,59,0,0]} 1. d4 {[%emt 0:00:06]} Nf6 {[%emt 0:00:07]} 2. c4 {[%emt 0:00:08]} g6 {[%emt 0:00:05]} 3. Nc3 {[%emt 0:00:19]} d5 {[%emt 0:00:16]} 4. Bg5 {[%emt 0:00:33]} Ne4 {[%emt 0:00:25]} 5. Bh4 {[%emt 0:00:28]} c5 {[%emt 0:00:59]} 6. cxd5 {[%emt 0:00:57]} Nxc3 {[%emt 0:00:28]} 7. bxc3 {[%emt 0:00:11]} Qxd5 {[%emt 0:00:06]} 8. e3 {[%emt 0:01:08]} cxd4 {[%emt 0:03:05]} 9. Qxd4 {[%emt 0:06:40] D80: Grünfeld: Unusual White 4th moves and 4 Bg5.} Qxd4 {[%emt 0:04:17]} 10. cxd4 {[%emt 0:00:30]} Bg7 {[%emt 0:02:03]} 11. Rc1 {[%emt 0:02:38] White is slightly better.} Nc6 {[%emt 0:16:33]} 12. Bb5 {[%emt 0:05:33]} Bd7 {[%emt 0:02:43] [#]} 13. Ne2 $146 {[%emt 0:06:10][%cal Bg1e2,Be2f4,Bf4d5,Bd5b4][%mdl 32]} ({Predecessor:} 13. Nf3 e6 14. Bg3 O-O 15. O-O Rac8 16. Be2 Rfd8 17. a3 Ne7 18. Ne5 Bc6 19. Nxc6 Nxc6 {1-0 Vilaboa Bernardez,J-Blasco de la Cruz,L ESP corr Spain 1991}) 13... a6 {[%emt 0:06:53]} 14. Ba4 {[%emt 0:03:46]} b5 {[%emt 0:08:34]} 15. Bb3 {[%emt 0:04:39]} Na5 {[%emt 0:04:10]} 16. Nf4 {[%emt 0:05:00]} Nxb3 {[%emt 0:08:20]} 17. axb3 {[%emt 0:00:06]} f6 {[%emt 0:08:43]} 18. Nd5 {[%emt 0:01:39] Nc7+ would be deadly.} Rc8 {[%emt 0:02:04]} (18... Ra7 $1 $11) 19. Ke2 $14 {[%emt 0:11:28]} Rc6 {[%emt 0:05:53]} 20. Nb4 {[%emt 0:14:22]} Rxc1 {[%emt 0:01:52]} 21. Rxc1 {[%emt 0:00:05]} a5 {[%emt 0:00:10]} 22. Nd5 {[%emt 0:00:47]} Kf7 {[%emt 0:02:01]} (22... g5 $14 {is superior.} 23. Bg3 a4) 23. Rc7 {[%emt 0:01:02] White is more active.} (23. Nb6 $16 Be8 24. Rc7) 23... Rd8 $11 {[%emt 0:00:13]} 24. Ra7 {[%emt 0:05:41][%cal Of2f3]} a4 {[%emt 0:02:15]} 25. bxa4 {[%emt 0:02:11]} bxa4 {[%emt 0:03:16] [#] ...Bb5+ is the strong threat.} 26. Kd2 {[%emt 0:02:14]} a3 {[%emt 0:03:45]} 27. Nb4 {[%emt 0:07:00] Repels Bc6} Bf8 {[%emt 0:01:33]} (27... g5 $5 28. Bg3 $8 Bb5 $11) 28. Nc2 {[%emt 0:02:53]} g5 {[%emt 0:02:27]} 29. Bg3 {[%emt 0:00:07][%cal Og3c7]} Kg6 {[%emt 0:00:33][%cal Oe7e5]} 30. Rxa3 {[%emt 0:03:12]} e5 {[%emt 0:03:05]} 31. Ra6 {[%emt 0:00:43]} exd4 {[%emt 0:01:13]} 32. Nxd4 {[%emt 0:00:52]} Bb5 {[%emt 0:00:23]} 33. Rb6 {[%emt 0:00:49]} Bf1 {[%emt 0:01:02]} 34. Be5 {[%emt 0:00:43]} Be7 {[%emt 0:00:34]} 35. g4 {[%emt 0:04:59]} Rd5 {[%emt 0:00:34]} 36. Ke1 {[%emt 0:02:01][%cal Od4c6] [#] Black must now prevent Nc6!} Bg2 {[%emt 0:00:36]} 37. f4 {[%emt 0:05:00]} gxf4 {[%emt 0:01:37]} 38. Bxf4 {[%emt 0:01:22]} Bc5 {[%emt 0:00:21][%csl LRb6,LRd4]} 39. Rb2 {[%emt 0:00:09]} Bh3 {[%emt 0:01:23]} 40. Rb5 {[%emt 0:00:00] Threatens to win with Ne6.} Bxg4 {[%emt 0:00:00]} 41. Kf2 {[%emt 0:06:18]} Bd7 {[%emt 0:02:40]} 42. Ra5 {[%emt 0:00:26]} Rh5 {[%emt 0:00:41]} 43. Nb3 {[%emt 0:01:47]} Bb6 {[%emt 0:00:36] This pair of bishops is nice.} 44. Ra6 {[%emt 0:03:06]} Rb5 {[%emt 0:00:52]} 45. Nd4 {[%emt 0:02:37]} Rb4 {[%emt 0:00:48]} 46. Kg3 $1 {[%emt 0:02:55]} Bxd4 {[%emt 0:03:07]} 47. exd4 {[%emt 0:00:12]} Rxd4 {[%emt 0:00:04][%mdl 4096] Endgame KRB-KRB} 48. Be5 {[%emt 0:01:42]} Rg4+ {[%emt 0:02:01]} 49. Kf3 {[%emt 0:00:09]} Rg1 {[%emt 0:02:57]} 50. Rxf6+ {[%emt 0:01:10]} Kh5 {[%emt 0:00:53]} 51. Bf4 {[%emt 0:02:02][%csl Gf4][%cal Rf6h6]} Rg6 {[%emt 0:00:07] Against Rh6+} 52. Rf7 {[%emt 0:00:22][%csl LRd7,LRh7]} Bg4+ {[%emt 0:00:06]} 53. Kf2 {[%emt 0:03:00]} h6 {[%emt 0:00:10]} 54. Re7 {[%emt 0:02:12]} Re6 {[%emt 0:01:17]} 55. Rg7 {[%emt 0:00:18]} Rg6 {[%emt 0:00:06]} 56. Rc7 {[%emt 0:00:38]} Ra6 {[%emt 0:02:44]} 57. Rc5+ {[%emt 0:00:47]} Kg6 {[%emt 0:00:12]} 58. Kg3 {[%emt 0:00:10]} Be6 {[%emt 0:00:37]} 59. h4 {[%emt 0:00:11]} Ra3+ {[%emt 0:00:26]} 60. Kg2 {[%emt 0:00:06]} Ra2+ {[%emt 0:00:54]} 61. Kf1 {[%emt 0:00:13]} Ra1+ {[%emt 0:00:38]} 62. Kg2 {[%emt 0:01:15]} Ra2+ {[%emt 0:00:05]} 63. Kg3 {[%emt 0:00:06]} Ra3+ {[%emt 0:00:05]} 64. Kf2 {[%emt 0:00:02]} Ra2+ {[%emt 0:00:56]} 65. Kf3 {[%emt 0:00:20]} Ra3+ {[%emt 0:00:21]} 66. Ke4 {[%emt 0:00:42]} Ra4+ {[%emt 0:00:32]} 67. Ke5 {[%emt 0:00:08]} Ra6 {[%emt 0:00:13]} 68. Ke4 {[%emt 0:00:34]} Ra4+ {[%emt 0:00:05]} 69. Kf3 {[%emt 0:00:03]} Ra3+ {[%emt 0:00:07]} 70. Be3 {[%emt 0:00:03]} Rb3 {[%emt 0:01:57]} 71. h5+ {[%emt 0:00:24]} Kf6 {[%emt 0:00:08]} 72. Ke4 {[%emt 0:00:25]} Rb4+ {[%emt 0:01:28]} 73. Bd4+ {[%emt 0:00:14]} Ke7 {[%emt 0:01:02]} 74. Ke5 {[%emt 0:02:43]} Bd7 {[%emt 0:01:40]} 75. Rc7 {[%emt 0:01:09] White wants to mate with Bc5+.} Rb1 {[%emt 0:02:04]} 76. Kd5 {[%emt 0:02:04]} Rh1 {[%emt 0:03:56]} 77. Bc5+ {[%emt 0:00:29]} Ke8 {[%emt 0:01:02]} 78. Kd6 {[%emt 0:03:08]} Rd1+ {[%emt 0:01:32]} 79. Ke5 {[%emt 0:00:17]} Re1+ {[%emt 0:00:20]} 80. Kf6 {[%emt 0:00:15]} Re6+ {[%emt 0:00:17]} 81. Kg7 {[%emt 0:00:20]} Rc6 {[%emt 0:00:04]} 82. Rxc6 {[%emt 0:00:15]} Bxc6 {[%emt 0:00:05]} 83. Kxh6 {[%emt 0:00:07]} Be4 {[%emt 0:00:03]} (83... Bf3 $11) 84. Kg7 $1 $14 {[%emt 0:00:11]} Kd7 {[%emt 0:00:04]} 85. h6 {[%emt 0:00:06]} Kc6 {[%emt 0:00:03]} 86. h7 {[%emt 0:00:04]} (86. Ba7 $14) 86... Bxh7 {[%emt 0:00:04] Weighted Error Value: White=0.04 (flawless) /Black=0.05 (flawless)} 1/2-1/2